bitfinex/quotes_SOLUSD_20241122
["timestamp","ask_amount","ask_price","bid_price","bid_amount"]
[1732274289624,9.07360016,256.86,256.78,20.0]
[1732274290317,15.8632,256.92,256.81,9.07360016]
[1732274290523,9.07360016,256.89,256.81,9.65746379]
[1732274290725,9.07360016,256.89,256.81,9.07360016]
[1732274290929,9.07360016,256.87,256.8,20.0]
[1732274292522,6.4808,256.95,256.81,9.65753055]
[1732274292721,9.07360016,256.9,256.82,20.0]
[1732274293322,9.07360016,256.91,256.83,24.50350016]
[1732274293525,9.07360016,256.91,256.83,15.4299]
[1732274293741,3.8918,256.95,256.83,15.4299]
[1732274293948,9.07360016,256.9,256.83,15.4299]
[1732274297445,9.07360016,256.9,256.83,24.50350016]
[1732274297757,9.07360016,256.94,256.86,20.0]
[1732274297974,9.07360016,256.94,256.87,9.07360016]
[1732274298157,9.07360016,256.96,256.88,20.0]
[1732274299469,3.8902,257.06,256.92,20.0]
[1732274299640,3.8902,257.06,256.94,20.0]
[1732274299843,32.8485,257.1,256.94,20.0]
[1732274299844,9.07360016,257.02,256.94,20.0]
[1732274300244,9.07360016,257.0,256.94,20.0]
[1732274301047,9.07360016,256.96,256.94,20.0]
[1732274304552,9.07360016,256.98,256.94,20.0]
[1732274304758,30.9500064,257.1,256.94,20.0]
[1732274304940,9.07360016,257.0,256.94,20.0]
[1732274305563,9.07360016,257.0,256.94,20.5835605]
[1732274306467,9.07360016,257.02,256.96,20.0]
[1732274306767,9.07360016,257.02,256.96,20.58350222]
[1732274307651,9.07360016,257.0,256.96,20.58350222]
[1732274308651,9.07360016,257.0,256.96,20.0]
[1732274310645,3.889,257.13,256.98,20.0]
[1732274310854,9.07360016,257.06,257.0,20.0]
[1732274311165,9.07360016,257.06,257.01,0.58341716]
[1732274311470,3.8888,257.15,257.01,0.58341716]
[1732274311674,9.07360016,257.09,257.03,20.0]
[1732274312771,9.07360016,257.09,257.04,16.1056]
[1732274313160,9.07360016,257.09,257.05,20.0]
[1732274314071,9.07360016,257.12,257.05,20.58334984]
[1732274315867,9.07360016,257.08,257.05,20.0]
[1732274316068,9.07360016,257.06,257.05,20.0]
[1732274316359,9.07360016,257.06,257.04,16.1056]
[1732274317265,9.07360016,257.06,256.99,23.776884]
[1732274317576,9.07360016,257.03,256.99,23.776884]
[1732274318598,9.07360016,257.03,257.01,23.776884]
[1732274318780,14.143938,257.03,257.02,43.776884]
[1732274318981,14.143938,257.05,257.02,43.776884]
[1732274319304,14.143938,257.07,257.02,43.776884]
[1732274319889,14.143938,257.07,257.03,23.776884]
[1732274320080,14.143938,257.09,257.04,20.0]
[1732274320274,14.143938,257.09,257.05,23.776884]
[1732274320999,14.143938,257.12,257.07,23.776884]
[1732274321793,14.143938,257.12,257.09,23.776884]
[1732274321987,14.143938,257.12,257.1,20.0]
[1732274324281,14.143938,257.12,257.07,20.0]
[1732274324487,14.143938,257.08,257.07,20.0]
[1732274326080,14.143938,257.1,257.07,20.0]
[1732274326279,14.143938,257.12,257.08,23.776884]
[1732274326478,14.143938,257.12,257.09,20.0]
[1732274330992,14.143938,257.12,257.06,15.4482]
[1732274330993,14.143938,257.14,257.13,20.0]
[1732274333385,14.143938,257.14,257.13,43.776884]
[1732274337388,30.688838,257.27,257.19,120.856062]
[1732274337706,30.688838,257.27,257.13,43.776884]
[1732274337707,30.688838,257.27,257.17,20.0]
[1732274337903,14.143938,257.19,257.13,44.3599642]
[1732274338091,14.143938,257.19,257.16,23.776884]
[1732274338291,14.143938,257.19,257.17,20.0]
[1732274338601,14.143938,257.27,257.17,20.0]
[1732274338801,14.143938,257.23,257.21,20.0]
[1732274340489,14.143938,257.23,257.18,20.0]
[1732274340794,14.143938,257.19,257.14,20.0]
[1732274340996,14.143938,257.15,257.11,15.194]
[1732274341204,14.143938,257.13,257.11,15.194]
[1732274342198,14.143938,257.13,257.12,20.0]
[1732274342392,14.143938,257.13,257.07,0.5831998]
[1732274342699,14.143938,257.11,257.07,0.5831998]
[1732274342903,14.143938,257.11,257.06,20.0]
[1732274343082,14.143938,257.11,257.05,16.2759]
[1732274343284,3.8872,257.25,256.99,16.1789]
[1732274343285,14.143938,257.07,256.99,16.1789]
[1732274343488,14.143938,257.05,256.99,16.1789]
[1732274343899,14.143938,257.05,257.0,0.58340426]
[1732274344708,14.143938,257.05,257.02,20.0]
[1732274345085,14.143938,257.07,257.02,20.0]
[1732274345396,14.143938,257.09,257.06,20.0]
[1732274345591,20.0,257.23,257.12,120.856062]
[1732274345786,14.143938,257.15,257.08,20.0]
[1732274346003,14.143938,257.15,257.11,23.776884]
[1732274346199,14.143938,257.15,257.12,20.0]
[1732274347284,16.2562,257.39,257.19,20.0]
[1732274347485,14.143938,257.28,257.22,20.0]
[1732274347686,14.143938,257.28,257.22,20.58290746]
[1732274347905,14.143938,257.26,257.22,20.0]
[1732274348086,14.143938,257.24,257.17,20.0]
[1732274348421,14.143938,257.22,257.19,20.0]
[1732274348600,14.143938,257.2,257.19,20.0]
[1732274348801,16.2562,257.39,257.21,22.5]
[1732274349119,14.143938,257.31,257.25,20.0]
[1732274349697,14.143938,257.39,257.31,43.776884]
[1732274349903,7.85635156,257.52,257.32,0.58266154]
[1732274350105,3.8827,257.55,257.35,23.776884]
[1732274350106,14.143938,257.43,257.35,23.776884]
[1732274350319,14.143938,257.43,257.37,23.776884]
[1732274350517,14.143938,257.43,257.38,20.0]
[1732274351202,14.143938,257.45,257.38,20.0]
[1732274351609,14.143938,257.43,257.38,20.0]
[1732274351802,14.143938,257.41,257.33,20.0]
[1732274352134,14.143938,257.39,257.33,20.0]
[1732274352413,14.143938,257.39,257.31,20.0]
[1732274352619,14.143938,257.39,257.33,20.0]
[1732274353914,14.143938,257.39,257.31,0.58265845]
[1732274354120,14.143938,257.39,257.32,23.776884]
[1732274354417,14.143938,257.35,257.31,0.58265845]
[1732274354618,2.5,257.51,257.26,36.282738]
[1732274354619,14.143938,257.33,257.26,22.1388]
[1732274355116,14.143938,257.35,257.27,0.58277374]
[1732274355418,14.143938,257.35,257.28,14.143938]
[1732274355612,14.143938,257.35,257.26,36.282738]
[1732274356229,14.143938,257.35,257.27,23.776884]
[1732274356613,14.143938,257.35,257.29,23.776884]
[1732274356928,14.143938,257.35,257.3,20.0]
[1732274357930,19.99311627,257.52,257.32,20.0]
[1732274357931,14.143938,257.39,257.32,20.0]
[1732274360427,14.143938,257.37,257.32,20.0]
[1732274360735,14.143938,257.37,257.29,20.0]
[1732274361529,14.143938,257.37,257.3,37.920822]
[1732274361715,14.143938,257.39,257.31,20.0]
[1732274362616,14.143938,257.39,257.32,37.920822]
[1732274362823,14.143938,257.41,257.33,20.0]
[1732274363739,14.143938,257.39,257.33,20.0]
[1732274366146,14.143938,257.39,257.26,22.1388]
[1732274366147,14.143938,257.35,257.29,43.776884]
[1732274369123,14.143938,257.32,257.26,22.1388]
[1732274369538,14.143938,257.32,257.26,15.9992]
[1732274369734,14.143938,257.32,257.27,20.0]
[1732274371035,14.143938,257.28,257.23,20.0]
[1732274371341,14.143938,257.28,257.22,0.58293848]
[1732274372539,14.143938,257.3,257.22,14.72687648]
[1732274372738,14.143938,257.3,257.23,20.0]
[1732274373042,14.143938,257.3,257.24,0.58292996]
[1732274373247,14.143938,257.28,257.24,0.58292996]
[1732274373927,14.143938,257.28,257.21,20.58293877]
[1732274374146,14.143938,257.28,257.23,20.0]
[1732274378739,14.143938,257.26,257.23,20.0]
[1732274379655,14.143938,257.26,257.21,20.0]
[1732274379847,14.143938,257.24,257.21,20.0]
[1732274380045,14.143938,257.22,257.15,0.58302695]
[1732274381358,14.143938,257.2,257.15,20.58302695]
[1732274381856,14.143938,257.2,257.15,20.0]
[1732274382636,14.143938,257.22,257.15,20.0]
[1732274382953,14.143938,257.22,257.15,20.58311626]
[1732274384546,14.143938,257.24,257.17,20.0]
[1732274384748,14.143938,257.24,257.17,20.58304529]
[1732274387946,14.143938,257.22,257.15,20.0]
[1732274390063,14.143938,257.22,257.16,0.5831007]
[1732274390367,14.143938,257.25,257.17,23.776884]
[1732274390548,14.143938,257.25,257.18,20.58303201]
[1732274394754,9.03709819,257.25,257.18,20.58303201]
[1732274399857,9.03709819,257.27,257.18,20.58303201]
[1732274400873,22.8664,257.33,257.2,20.0]
[1732274401170,9.03709819,257.29,257.23,20.0]
[1732274403378,9.03709819,257.29,257.23,20.58294182]
[1732274404565,9.03709819,257.24,257.19,20.0]
[1732274404876,9.03709819,257.24,257.18,23.776884]
[1732274405085,9.03709819,257.24,257.17,23.776884]
[1732274405658,9.03709819,257.24,257.16,23.776884]
[1732274406070,9.03709819,257.24,257.17,20.0]
[1732274406355,9.03709819,257.24,257.19,20.0]
[1732274406555,9.03709819,257.24,257.17,20.0]
[1732274407075,9.03709819,257.24,257.17,29.03709819]
[1732274407376,9.03709819,257.27,257.2,20.0]
[1732274408063,3.8853,257.38,257.22,20.0]
[1732274408064,9.03709819,257.28,257.22,20.0]
[1732274408262,9.03709819,257.3,257.24,20.0]
[1732274408988,9.03709819,257.3,257.26,20.0]
[1732274409567,9.03709819,257.3,257.24,20.0]
[1732274409873,9.03709819,257.26,257.23,20.0]
[1732274412276,9.03709819,257.24,257.14,15.168]
[1732274412485,36.14839276,257.27,257.14,15.168]
[1732274412486,9.03709819,257.2,257.14,15.168]
[1732274413571,9.03709819,257.2,257.1,9.03709819]
[1732274413784,9.03709819,257.18,257.1,9.03709819]
[1732274414180,9.03709819,257.18,257.11,20.58321082]
[1732274414375,9.03709819,257.2,257.11,20.58321082]
[1732274414581,9.03709819,257.2,257.13,20.0]
[1732274416087,9.03709819,257.22,257.15,20.0]
[1732274416389,9.03709819,257.22,257.15,20.5831027]
[1732274420103,22.8501,257.29,257.15,20.5831027]
[1732274420289,9.03709819,257.25,257.19,20.0]
[1732274420680,9.03709819,257.23,257.19,20.0]
[1732274420994,9.03709819,257.21,257.14,23.776884]
[1732274421199,9.03709819,257.21,257.15,20.0]
[1732274423097,9.03709819,257.23,257.16,23.776884]
[1732274423276,9.03709819,257.23,257.17,20.0]
[1732274423900,9.03709819,257.21,257.1,20.58303638]
[1732274424200,34.83413222,257.35,257.14,20.0]
[1732274424497,34.83413222,257.35,257.16,20.0]
[1732274424498,9.03709819,257.22,257.16,20.0]
[1732274426783,27.662784,257.34,257.16,20.0]
[1732274426981,9.03709819,257.23,257.16,20.0]
[1732274428301,9.03709819,257.23,257.15,24.3599748]
[1732274428302,47.661884,257.4,257.22,9.03709819]
[1732274428504,9.03709819,257.37,257.29,16.2898]
[1732274428809,16.0495,257.45,257.31,23.776884]
[1732274428980,16.0495,257.45,257.34,20.0]
[1732274428981,9.03709819,257.39,257.34,20.0]
[1732274429182,9.03709819,257.39,257.37,23.776884]
[1732274429410,9.03709819,257.39,257.38,20.0]
[1732274429610,9.03709819,257.39,257.38,23.776884]
[1732274430101,9.03709819,257.39,257.33,23.776884]
[1732274430309,9.03709819,257.34,257.31,23.776884]
[1732274430512,9.03709819,257.32,257.31,43.776884]
[1732274433589,9.03709819,257.32,257.23,20.0]
[1732274433807,9.03709819,257.27,257.23,20.0]
[1732274434602,9.03709819,257.29,257.23,20.0]
[1732274434785,9.03709819,257.29,257.24,0.58294452]
[1732274434985,9.03709819,257.31,257.26,20.0]
[1732274435191,9.03709819,257.32,257.3,20.0]
[1732274435389,3.8845,257.43,257.32,20.0]
[1732274435610,9.03709819,257.35,257.33,23.776884]
[1732274436695,3.8847,257.42,257.33,23.776884]
[1732274437012,14.11016999,257.34,257.33,43.776884]
[1732274437589,14.11016999,257.34,257.33,23.776884]
[1732274444019,14.11016999,257.34,257.23,20.58290192]
[1732274444217,14.11016999,257.4,257.26,23.776884]
[1732274444218,14.11016999,257.3,257.26,23.776884]
[1732274444422,14.11016999,257.3,257.27,20.0]
[1732274444612,14.11016999,257.3,257.29,20.0]
[1732274444814,14.11016999,257.3,257.29,43.776884]
[1732274445311,14.11016999,257.3,257.23,0.58290192]
[1732274445512,14.11016999,257.25,257.16,36.04011637]
[1732274447035,14.11016999,257.25,257.18,20.0]
[1732274447230,14.11016999,257.25,257.19,23.776884]
[1732274447440,14.11016999,257.25,257.2,20.0]
[1732274447743,14.11016999,257.25,257.22,20.0]
[1732274448040,15.4428,257.35,257.18,0.58305897]
[1732274448041,14.11016999,257.27,257.25,23.776884]
[1732274448420,15.4428,257.35,257.25,23.776884]
[1732274448421,14.11016999,257.29,257.26,20.0]
[1732274448714,14.11016999,257.29,257.27,23.776884]
[1732274452139,14.11016999,257.31,257.3,20.0]
[1732274452339,14.11016999,257.31,257.3,43.776884]
[1732274452924,14.11016999,257.33,257.31,23.776884]
[1732274456724,9.03209593,257.32,257.31,43.776884]
[1732274457148,9.03209593,257.32,257.31,23.776884]
[1732274459932,9.03209593,257.32,257.2,15.7965]
[1732274460122,9.03209593,257.25,257.21,20.0]
[1732274461747,9.03209593,257.25,257.24,23.776884]
[1732274461946,9.03209593,257.25,257.24,43.776884]
[1732274464769,9.03209593,257.27,257.26,23.776884]
[1732274465128,9.03209593,257.27,257.26,43.776884]
[1732274465543,3.8852,257.39,257.28,23.776884]
[1732274465854,15.9486,257.42,257.32,23.776884]
[1732274466153,9.03209593,257.36,257.32,23.776884]
[1732274466550,9.03209593,257.34,257.32,23.776884]
[1732274466933,9.03209593,257.34,257.21,0.58288051]
[1732274467150,38.62838372,257.4,257.16,9.03209593]
[1732274467151,9.03209593,257.24,257.16,9.03209593]
[1732274467354,9.03209593,257.28,257.18,9.03209593]
[1732274467651,9.03209593,257.28,257.18,9.61507852]
[1732274468049,9.03209593,257.28,257.2,9.03209593]
[1732274468354,9.03209593,257.3,257.21,43.776884]
[1732274468867,36.12838372,257.4,257.23,43.776884]
[1732274469173,9.03209593,257.32,257.23,43.776884]
[1732274469371,19.8334,257.42,257.27,23.776884]
[1732274469554,9.03209593,257.34,257.3,20.0]
[1732274469754,9.03209593,257.34,257.31,23.776884]
[1732274470174,9.03209593,257.34,257.33,23.776884]
[1732274475660,15.9486,257.42,257.35,23.776884]
[1732274475853,9.03209593,257.36,257.35,43.776884]
[1732274476753,9.03209593,257.36,257.35,23.776884]
[1732274477284,9.03209593,257.36,257.21,20.5828463]
[1732274477575,9.03209593,257.31,257.25,20.0]
[1732274477755,9.03209593,257.31,257.26,23.776884]
[1732274478164,9.03209593,257.31,257.28,23.776884]
[1732274478552,9.03209593,257.31,257.29,20.0]
[1732274478751,9.03209593,257.31,257.3,43.776884]
[1732274479672,36.12838372,257.4,257.32,23.776884]
[1732274479874,9.03209593,257.33,257.32,43.776884]
[1732274480062,9.03209593,257.33,257.32,23.776884]
[1732274483462,9.03209593,257.33,257.23,20.0]
[1732274483680,9.03209593,257.26,257.25,43.776884]
[1732274485594,9.03209593,257.26,257.25,23.776884]
[1732274488980,2.5,257.41,257.25,23.776884]
[1732274489190,9.03209593,257.3,257.26,43.776884]
[1732274489394,45.16047965,257.27,257.13,36.6330637]
[1732274489597,5.72520361,257.34,257.13,9.03209593]
[1732274489902,15.0566,257.37,257.17,9.03209593]
[1732274489903,9.03209593,257.26,257.17,9.03209593]
[1732274490506,9.03209593,257.26,257.18,20.0]
[1732274491007,9.03209593,257.26,257.2,20.0]
[1732274491306,9.03209593,257.26,257.23,23.776884]
[1732274491880,15.0566,257.37,257.25,23.776884]
[1732274492202,2.89004117,257.36,257.27,23.776884]
[1732274492407,9.03209593,257.31,257.27,23.776884]
[1732274494407,9.03209593,257.29,257.27,23.776884]
[1732274495485,9.03209593,257.29,257.21,20.0]
[1732274495691,9.03209593,257.23,257.21,20.0]
[1732274496700,9.03209593,257.23,257.22,23.776884]
[1732274496901,9.03209593,257.23,257.22,43.776884]
[1732274497885,3.886,257.33,257.22,43.776884]
[1732274498207,9.03209593,257.23,257.22,43.776884]
[1732274501288,9.03209593,257.23,257.22,23.776884]
[1732274502085,15.0566,257.37,257.24,23.776884]
[1732274502407,9.03209593,257.28,257.24,23.776884]
[1732274502711,9.03209593,257.26,257.24,23.776884]
[1732274503016,9.03209593,257.26,257.15,20.0]
[1732274503215,9.03209593,257.2,257.15,20.0]
[1732274504095,9.03209593,257.22,257.18,23.776884]
[1732274504296,9.03209593,257.22,257.19,20.0]
[1732274504512,9.03209593,257.22,257.21,20.0]
[1732274504891,9.03209593,257.22,257.21,43.776884]
[1732274506008,9.03209593,257.26,257.22,23.776884]
[1732274506222,9.03209593,257.26,257.24,23.776884]
[1732274506801,9.03209593,257.26,256.65,12.03153311]
[1732274506802,9.03209593,257.26,257.15,0.58307525]
[1732274507012,9.03209593,257.2,257.15,20.0]
[1732274507215,9.03209593,257.22,257.15,20.0]
[1732274507519,9.03209593,257.24,257.16,9.03209593]
[1732274507718,9.03209593,257.24,257.17,20.0]
[1732274507899,9.03209593,257.22,257.17,20.0]
[1732274508214,9.03209593,257.22,257.18,23.776884]
[1732274508817,9.03209593,257.22,257.19,20.0]
[1732274509118,9.03209593,257.22,233.21,1.0062162]
[1732274509119,9.03209593,257.2,257.08,15.7746]
[1732274509425,9.03209593,257.13,257.08,15.7746]
[1732274510294,9.03209593,257.13,257.09,43.776884]
[1732274510502,9.03209593,257.15,257.09,43.776884]
[1732274510703,14.13126938,257.15,257.09,43.776884]
[1732274510903,14.13126938,257.1,257.01,16.5105]
[1732274511103,14.13126938,257.04,257.01,16.5105]
[1732274511720,14.13126938,257.04,256.99,6.1157]
[1732274512327,14.13126938,257.04,256.95,29.69476938]
[1732274513109,14.13126938,257.04,256.96,23.776884]
[1732274513820,14.13126938,257.02,256.96,23.776884]
[1732274514327,14.13126938,257.02,256.98,23.776884]
[1732274514529,14.13126938,257.02,256.99,20.0]
[1732274514715,14.13126938,257.02,257.0,23.776884]
[1732274515032,14.13126938,257.02,257.01,20.0]
[1732274515210,14.13126938,257.02,257.01,43.776884]
[1732274515531,14.13126938,257.02,257.01,20.0]
[1732274515717,14.13126938,257.02,256.96,20.0]
[1732274516028,14.13126938,256.97,256.9,20.0]
[1732274517034,14.13126938,256.97,256.91,23.776884]
[1732274517210,14.13126938,256.97,256.93,23.776884]
[1732274517728,14.13126938,257.01,256.97,23.776884]
[1732274517907,14.13126938,257.01,256.98,20.0]
[1732274518109,14.13126938,257.03,257.0,20.0]
[1732274518520,14.13126938,257.03,257.02,20.0]
[1732274518720,14.13126938,257.03,257.02,43.776884]
[1732274519031,14.13126938,257.05,257.04,43.776884]
[1732274520536,14.13126938,257.07,257.04,43.776884]
[1732274521148,14.13126938,257.07,257.06,43.776884]
[1732274521424,14.13126938,257.09,257.06,43.776884]
[1732274521626,14.13126938,257.09,257.08,43.776884]
[1732274524514,7.609964,257.22,257.08,43.776884]
[1732274524716,14.13126938,257.16,257.12,20.0]
[1732274524924,14.13126938,257.16,257.13,23.776884]
[1732274525806,14.13126938,257.16,257.14,20.0]
[1732274526032,14.13126938,257.16,257.15,43.776884]
[1732274526229,14.13126938,257.2,257.18,20.0]
[1732274526532,14.13126938,257.2,257.19,23.776884]
[1732274526731,15.9392,257.36,257.21,23.776884]
[1732274526936,14.13126938,257.26,257.23,23.776884]
[1732274527328,14.13126938,257.24,257.23,23.776884]
[1732274527527,14.13126938,257.24,257.23,43.776884]
[1732274528734,2.5,257.4,257.24,20.0]
[1732274528909,5.0,257.37,257.25,23.776884]
[1732274529232,14.13126938,257.26,257.25,43.776884]
[1732274530227,14.13126938,257.26,257.25,23.776884]
[1732274531644,14.13126938,257.26,257.14,20.0]
[1732274531945,14.13126938,257.19,257.14,20.0]
[1732274532613,14.13126938,257.21,257.14,20.0]
[1732274533032,14.13126938,257.21,257.16,20.0]
[1732274533213,14.13126938,257.21,257.18,20.0]
[1732274533415,14.13126938,257.21,257.2,43.776884]
[1732274534433,14.13126938,257.21,257.2,20.0]
[1732274534736,14.13126938,257.21,257.14,20.0]
[1732274534933,14.13126938,257.17,257.14,20.0]
[1732274535833,14.13126938,257.17,257.16,20.0]
[1732274536035,14.13126938,257.17,257.16,43.776884]
[1732274536231,18.965,257.4,257.29,20.0]
[1732274536434,35.59626938,257.4,257.3,23.776884]
[1732274537841,14.13126938,257.31,257.3,23.776884]
[1732274538152,14.13126938,257.35,257.32,23.776884]
[1732274538326,14.13126938,257.35,257.34,23.776884]
[1732274538526,14.13126938,257.35,257.34,43.776884]
[1732274544950,18.018714,257.55,257.35,20.0]
[1732274545147,18.018714,257.55,257.39,20.0]
[1732274545148,14.13126938,257.43,257.39,20.0]
[1732274545444,14.13126938,257.43,257.4,23.776884]
[1732274545746,14.13126938,257.43,257.42,43.776884]
[1732274554662,3.8832,257.52,257.43,20.0]
[1732274554954,14.13126938,257.45,257.44,23.776884]
[1732274555255,14.13126938,257.45,257.36,14.13126938]
[1732274555453,14.13126938,257.45,257.37,43.776884]
[1732274556058,14.13126938,257.45,257.39,23.776884]
[1732274556268,14.13126938,257.45,257.42,20.0]
[1732274556555,14.13126938,257.45,257.43,23.776884]
[1732274560949,14.13126938,257.45,257.36,20.0]
[1732274561264,3.8829,257.54,257.39,20.0]
[1732274561441,14.13126938,257.44,257.39,20.0]
[1732274561850,14.13126938,257.42,257.36,20.0]
[1732274562448,14.13126938,257.42,257.37,23.776884]
[1732274562755,14.13126938,257.42,257.39,23.776884]
[1732274563064,14.13126938,257.42,257.4,20.0]
[1732274563245,14.13126938,257.42,257.41,23.776884]
[1732274563443,6.0008,257.57,257.41,43.776884]
[1732274563663,14.13126938,257.46,257.43,23.776884]
[1732274566169,3.8818,257.61,257.5,120.86873062]
[1732274566358,14.13126938,257.52,257.51,23.776884]
[1732274569748,14.13126938,257.52,257.44,20.0]
[1732274569952,14.13126938,257.49,257.44,23.776884]
[1732274570260,14.13126938,257.49,257.46,23.776884]
[1732274570450,14.13126938,257.49,257.48,23.776884]
[1732274570649,14.13126938,257.49,257.47,20.0]
[1732274570844,14.13126938,257.49,257.35,16.4026]
[1732274570845,18.01486938,257.49,257.35,30.53386938]
[1732274571146,18.01486938,257.49,257.35,16.4026]
[1732274571147,14.13126938,257.42,257.35,16.4026]
[1732274572164,14.13126938,257.4,257.35,16.4026]
[1732274572669,14.13126938,257.4,257.33,14.13126938]
[1732274573068,14.13126938,257.4,257.34,20.0]
[1732274573368,15.9567,257.52,257.4,20.0]
[1732274573557,14.13126938,257.49,257.42,20.0]
[1732274573763,14.13126938,257.49,257.45,23.776884]
[1732274574082,14.13126938,257.47,257.45,23.776884]
[1732274576384,14.13126938,257.51,257.46,20.0]
[1732274576562,14.13126938,257.51,257.48,20.0]
[1732274576977,14.13126938,257.51,257.49,23.776884]
[1732274577162,14.13126938,257.53,257.49,23.776884]
[1732274582286,14.13126938,257.53,257.51,23.776884]
[1732274582763,14.13126938,257.53,257.49,23.776884]
[1732274583164,14.13126938,257.55,257.51,23.776884]
[1732274583989,14.13126938,257.53,257.51,23.776884]
[1732274584670,14.13126938,257.53,257.39,20.72566938]
[1732274584671,28.26253876,257.53,257.39,20.72566938]
[1732274584981,14.13126938,257.48,257.39,20.72566938]
[1732274585984,14.13126938,257.48,257.43,20.0]
[1732274586290,14.13126938,257.48,257.44,23.776884]
[1732274586599,14.13126938,257.48,257.46,23.776884]
[1732274586891,14.13126938,257.52,257.48,23.776884]
[1732274587580,14.13126938,257.52,257.5,23.776884]
[1732274587963,14.13126938,257.52,257.48,23.776884]
[1732274588172,14.13126938,257.5,257.49,43.776884]
[1732274593383,14.13126938,257.5,257.4,14.13126938]
[1732274593680,14.13126938,257.48,257.43,23.776884]
[1732274594183,3.93975192,257.65,257.47,23.776884]
[1732274594377,6.26387346,257.68,257.47,23.776884]
[1732274594378,14.13126938,257.48,257.47,43.776884]
[1732274594685,14.13126938,257.48,257.4,2.5]
[1732274594881,14.13126938,257.41,257.4,2.5]
[1732274595601,14.13126938,257.43,257.4,2.5]
[1732274595897,14.13126938,257.43,257.41,2.5]
[1732274596102,14.13126938,257.45,257.43,26.276884]
[1732274596586,14.13126938,257.45,257.43,23.776884]
[1732274598085,14.13126938,257.45,257.39,2.5]
[1732274598281,23.83886938,257.53,257.37,2.5]
[1732274598282,14.13126938,257.41,257.37,2.5]
[1732274598485,14.13126938,257.38,257.37,2.5]
[1732274598899,14.13126938,257.4,257.39,2.5]
[1732274599108,14.13126938,257.4,257.37,2.5]
[1732274599279,14.13126938,257.38,257.35,2.5]
[1732274599601,14.13126938,257.36,257.33,2.5]
[1732274599799,14.13126938,257.34,257.33,2.5]
[1732274600001,14.13126938,257.34,257.23,2.5]
[1732274600200,14.13126938,257.4,257.22,2.5]
[1732274600201,14.13126938,257.26,257.22,5.0]
[1732274600405,14.13126938,257.26,257.23,2.5]
[1732274600595,14.13126938,257.26,257.24,2.5]
[1732274600989,14.13126938,257.28,257.26,2.5]
[1732274601685,14.13126938,257.28,257.27,23.776884]
[1732274601893,14.13126938,257.29,257.22,5.0]
[1732274602094,3.8855,257.37,257.22,5.0]
[1732274602298,14.13126938,257.26,257.22,5.0]
[1732274602692,14.13126938,257.26,257.24,2.5]
[1732274602887,14.13126938,257.26,257.14,2.5]
[1732274603082,14.13126938,257.16,257.15,2.5]
[1732274603508,14.13126938,257.18,257.17,2.5]
[1732274604094,14.13126938,257.18,257.15,5.0]
[1732274604409,14.13126938,257.16,257.12,2.5]
[1732274604621,14.13126938,257.13,257.12,2.5]
[1732274607514,14.13126938,257.13,257.09,23.776884]
[1732274607813,14.13126938,257.1,257.09,22.5]
[1732274608222,14.13126938,257.1,257.07,5.0]
[1732274609092,14.13126938,257.1,257.09,5.0]
[1732274609697,14.13126938,257.12,257.11,2.5]
[1732274609897,14.13126938,257.12,257.1,20.0]
[1732274609898,3.887,257.27,257.19,2.5]
[1732274610106,14.13126938,257.2,257.16,2.5]
[1732274610309,14.13126938,257.18,257.17,2.5]
[1732274610505,18.01826938,257.27,257.19,2.5]
[1732274610704,14.13126938,257.2,257.19,2.5]
[1732274611013,14.13126938,257.2,257.17,2.5]
[1732274611223,14.13126938,257.18,257.17,2.5]
[1732274615614,14.13126938,257.2,257.17,2.5]
[1732274615819,19.64755377,257.49,257.21,2.5]
[1732274615820,14.13126938,257.22,257.21,2.5]
[1732274616395,14.13126938,257.22,257.19,2.5]
[1732274616619,14.13126938,257.2,257.19,2.5]
[1732274623323,15.0771,257.31,257.2,2.5]